bitfinex/quotes_ETHUSD_20220215
["timestamp","ask_amount","ask_price","bid_price","bid_amount"]
[1644896529374,1.40046057,3031.2,3031.0,1.7847517]
[1644896529774,1.40046057,3031.2,3031.0,2.6096117]
[1644896529976,1.40046057,3031.2,3031.1,0.82485]
[1644896530375,1.40366016,3031.3,3031.1,0.82485]
[1644896530576,1.40874408,3031.3,3031.1,0.82485]
[1644896530776,1.40046057,3031.2,3031.1,0.82485]
[1644896531626,1.40874758,3031.3,3031.0,2.76541321]
[1644896531832,1.40046057,3031.2,3031.1,0.07001997]
[1644896532927,1.40046057,3031.2,3031.1,0.89486997]
[1644896533127,1.40046057,3031.2,3031.1,3.29486997]
[1644896534887,1.40046057,3031.2,3031.1,4.03716537]
[1644896551888,0.00319959,3031.3,3031.1,3.9671454]
[1644896552085,0.00152974,3031.3,3031.1,3.9671454]
[1644896552285,0.00152974,3031.3,3031.2,0.82473]
[1644896552686,0.00152974,3031.3,3031.2,1.12473]
[1644896553083,1.40029016,3031.4,3031.2,1.12473]
[1644896553284,1.40029016,3031.3,3031.2,1.12473]
[1644896553536,1.40029016,3031.3,3031.2,1.8669247]
[1644896554635,1.39905292,3031.3,3031.2,1.8669247]
[1644896555637,0.00576059,3031.4,3031.2,1.8669247]
[1644896555838,0.00576059,3031.4,3031.3,1.5669133]
[1644896556536,0.00319959,3031.5,3031.3,1.5669133]
[1644896556937,0.00817885,3031.5,3031.4,0.82468]
[1644896557181,0.00817885,3031.5,3031.3,1.5669133]
[1644896557182,0.00497926,3031.5,3031.3,0.89798741]
[1644896557785,0.69328214,3031.6,3031.3,0.89798741]
[1644896557982,0.6982614,3031.6,3031.4,0.82468]
[1644896558385,0.6982614,3031.6,3031.4,1.0422714]
[1644896558984,0.6982614,3031.6,3031.5,0.82475]
[1644896558985,0.69008255,3031.6,3031.5,0.82475]
[1644896559185,0.69328214,3031.6,3031.5,0.82475]
[1644896559384,0.69008255,3031.6,3031.5,0.82475]
[1644896559985,0.69008255,3031.6,3031.5,1.5670173]
[1644896560289,0.69008255,3031.6,3031.5,1.8670173]
[1644896561639,0.69008255,3031.6,3031.5,1.86567212]
[1644896569533,0.69008255,3031.6,3031.5,1.04092212]
[1644896570735,0.69008255,3031.6,3031.5,1.86568212]
[1644896573015,0.69008255,3031.6,3031.5,1.04092212]
[1644896573215,0.69008255,3031.6,3031.5,1.86566212]
[1644896574614,2.06564577,3031.6,3031.5,1.93567329]
[1644896577226,2.06564577,3031.6,3031.5,1.9356743]
[1644896577529,2.06564577,3031.6,3031.5,1.93006128]
[1644896577729,2.06564577,3031.6,3031.5,1.86004911]
[1644896578228,2.06564577,3031.6,3031.5,1.9300612]
[1644896578428,2.06564577,3031.6,3031.5,1.86004911]
[1644896578833,2.06564577,3031.6,3031.5,1.93006092]
[1644896579029,2.06564577,3031.6,3031.5,1.9300611]
[1644896579229,2.06564577,3031.6,3031.5,1.93006057]
[1644896579430,2.06564577,3031.6,3031.5,1.86004911]
[1644896579680,2.06564577,3031.6,3031.5,1.93006066]
[1644896579883,2.06564577,3031.6,3031.5,1.86004911]
[1644896580085,2.06564577,3031.6,3031.5,1.9300605]
[1644896580281,2.06564577,3031.6,3031.5,1.86004911]
[1644896580484,2.06564577,3031.6,3031.5,1.93005967]
[1644896580682,2.06564577,3031.6,3031.5,1.86004911]
[1644896580883,2.06564577,3031.6,3031.5,1.93005863]
[1644896581084,2.06564577,3031.6,3031.5,1.86004911]
[1644896581282,2.06564577,3031.6,3031.5,1.93005914]
[1644896581983,2.06564577,3031.6,3031.5,1.10531914]
[1644896582183,2.06564577,3031.6,3031.5,1.03530911]
[1644896582382,2.06564577,3031.6,3031.5,1.10531839]
[1644896582584,2.06564577,3031.6,3031.5,1.03530911]
[1644896582784,2.70697984,3031.6,3031.5,1.10531939]
[1644896582983,2.70697984,3031.6,3031.5,1.10531902]
[1644896583182,2.70697984,3031.6,3031.5,1.10531845]
[1644896583428,2.70697984,3031.6,3031.5,1.10531874]
[1644896583626,2.70697984,3031.6,3031.5,1.03530911]
[1644896583827,2.70697984,3031.6,3031.5,1.10531806]
[1644896584030,2.70697984,3031.6,3031.5,1.03530911]
[1644896584629,2.70697984,3031.6,3031.5,1.86005911]
[1644896584827,2.70697984,3031.6,3031.5,1.93006814]
[1644896585030,2.70697984,3031.6,3031.5,1.86005911]
[1644896585232,2.70697984,3031.6,3031.5,1.93006818]
[1644896585430,2.70697984,3031.6,3031.5,1.86005911]
[1644896585630,2.70697984,3031.6,3031.5,1.93006777]
[1644896585830,2.70697984,3031.6,3031.5,1.86005911]
[1644896586332,2.70697984,3031.6,3031.5,1.93006814]
[1644896586833,2.70697984,3031.6,3031.5,1.93006809]
[1644896587680,2.70697984,3031.6,3031.5,1.86005911]
[1644896587877,2.70697984,3031.6,3031.5,1.93006884]
[1644896588077,2.70697984,3031.6,3031.5,1.93006905]
[1644896588278,2.70697984,3031.6,3031.5,1.86005911]
[1644896588478,2.70697984,3031.6,3031.5,1.93006853]
[1644896588681,2.70697984,3031.6,3031.5,1.86005911]
[1644896588880,2.70697984,3031.6,3031.5,1.9300688]
[1644896589084,2.70697984,3031.6,3031.5,1.86005911]
[1644896589281,2.70697984,3031.6,3031.5,1.93006847]
[1644896589481,2.70697984,3031.6,3031.5,1.93006895]
[1644896589680,2.70697984,3031.6,3031.5,1.86005911]
[1644896589880,2.70697984,3031.6,3031.5,1.93006925]
[1644896590079,2.70697984,3031.6,3031.5,1.93007284]
[1644896590283,2.70697984,3031.6,3031.5,1.93007079]
[1644896590480,2.70697984,3031.6,3031.5,1.86005911]
[1644896590682,2.70697984,3031.6,3031.5,1.93007239]
[1644896590929,2.70697984,3031.6,3031.5,1.93007262]
[1644896591130,2.70697984,3031.6,3031.5,1.86005911]
[1644896591332,2.70697984,3031.6,3031.5,1.93007103]
[1644896596382,2.06564577,3031.6,3031.5,1.93007103]
[1644896597581,1.06564577,3031.6,3031.5,1.93007103]
[1644896598830,0.00319959,3031.7,3031.5,2.75477103]
[1644896598831,0.008314,3031.7,3031.5,2.75477103]
[1644896599031,0.00511441,3031.7,3031.6,0.8247]
[1644896599235,0.00511441,3031.7,3031.5,1.85087381]
[1644896599935,1.14453366,3031.8,3031.6,0.8247]
[1644896600134,1.14964807,3031.8,3031.6,0.6597395]
[1644896601134,1.14453366,3031.8,3031.6,0.6597395]
[1644896601336,1.14453366,3031.8,3031.6,0.9597395]
[1644896601934,1.14453366,3031.8,3031.7,0.8247]
[1644896603704,1.14133407,3031.8,3031.7,0.8247]
[1644896608633,1.14133407,3031.8,3031.6,0.3]
[1644896608831,1.14453366,3031.8,3031.2,0.92857141]
[1644896609683,1.14453366,3031.8,3031.4,0.82478]
[1644896609684,0.00511456,3031.7,3031.4,0.82478]
[1644896609883,0.00511456,3031.7,3031.4,1.12478]
[1644896610384,0.00511456,3031.7,3031.2,0.92857141]
[1644896610586,1.14453366,3031.8,3031.2,0.92857141]
[1644896610986,0.00511435,3031.7,3031.2,0.92857141]
[1644896611586,0.00511435,3031.7,3031.4,0.82474]
[1644896611790,1.14453366,3031.8,3031.5,0.82474]
[1644896612189,0.00511435,3031.6,3031.5,1.12474]
[1644896612987,1.14453366,3031.8,3031.5,1.12471]
[1644896613190,1.14453366,3031.8,3031.6,0.82471]
[1644896613439,0.00511435,3031.7,3031.6,1.12471]
[1644896614339,1.14453366,3031.8,3031.7,0.82471]
[1644896614541,1.1496481,3031.8,3031.7,0.82471]
[1644896615440,1.14453366,3031.8,3031.7,0.82471]
[1644896615640,1.14133407,3031.8,3031.7,0.82471]
[1644896617488,2.47595148,3031.8,3031.7,0.89472187]
[1644896619588,2.47595148,3031.8,3031.7,0.89472013]
[1644896619788,2.47595148,3031.8,3031.7,0.82471]
[1644896619988,2.47595148,3031.8,3031.7,0.89805097]
[1644896620188,2.47595148,3031.8,3031.7,0.82471]
[1644896620394,2.47595148,3031.8,3031.7,0.89805087]
[1644896620592,2.47595148,3031.8,3031.7,0.82471]
[1644896620789,2.47595148,3031.8,3031.7,0.89805039]
[1644896621030,2.47595148,3031.8,3031.7,0.89804302]
[1644896621230,2.47595148,3031.8,3031.7,0.82471]
[1644896621630,2.47595148,3031.8,3031.7,0.89804222]
[1644896621830,2.47595148,3031.8,3031.7,0.90296335]
[1644896622031,2.47595148,3031.8,3031.7,0.82471]
[1644896622233,2.47595148,3031.8,3031.7,0.90296762]
[1644896622431,2.47595148,3031.8,3031.7,0.82471]
[1644896622633,2.47595148,3031.8,3031.7,0.90296045]
[1644896622831,2.47595148,3031.8,3031.7,0.82471]
[1644896623532,2.47595148,3031.8,3031.7,0.9029742]
[1644896623733,2.47595148,3031.8,3031.6,1.7844926]
[1644896623933,1.33461741,3031.7,3031.6,1.7844926]
[1644896624131,1.33461741,3031.7,3031.6,1.20299538]
[1644896636134,1.33461741,3031.7,3031.6,4.70299538]
[1644896636333,1.31329517,3031.7,3031.6,1.20299538]
[1644896636531,0.5051144,3031.8,3031.6,2.02747538]
[1644896636731,0.5051144,3031.8,3031.7,0.07826538]
[1644896636932,1.81840586,3031.8,3031.7,0.07826538]
[1644896637131,1.81240848,3031.8,3031.7,0.07826538]
[1644896637832,1.81240848,3031.8,3031.7,0.90277538]
[1644896639703,1.81240848,3031.8,3031.7,0.07826538]
[1644896640202,1.81240848,3031.8,3031.6,0.07826538]
[1644896640500,1.31329146,3031.7,3031.6,0.07826538]
[1644896641308,1.31329146,3031.7,3031.2,0.0875647]
[1644896641501,1.31329146,3031.7,3031.6,0.0875647]
[1644896641900,1.31329146,3031.7,3031.2,0.08756959]
[1644896642100,2.13817146,3031.7,3031.2,0.08756959]
[1644896642302,1.31329146,3031.6,3031.2,0.08756959]
[1644896642502,1.31329146,3031.6,3031.2,0.74747469]
[1644896642701,2.13818146,3031.6,3031.3,0.08756959]
[1644896642901,1.31329146,3031.5,3031.4,0.08756959]
[1644896643101,1.31329146,3031.5,3031.3,0.08756959]
[1644896643302,1.31329146,3031.5,3031.3,0.38756959]
[1644896643536,1.31329146,3031.5,3031.4,0.08756959]
[1644896643737,6.31329146,3031.5,3031.4,0.08756959]
[1644896643941,6.06532785,3031.5,3031.4,0.07001998]
[1644896644138,6.06532785,3031.5,3031.4,0.07001978]
[1644896644338,6.06532785,3031.5,3031.2,0.07001949]
[1644896644540,6.06532785,3031.5,3031.3,0.0700184]
[1644896644541,2.31329146,3031.4,3031.3,0.0700184]
[1644896644739,2.31329146,3031.4,3031.2,0.0700184]
[1644896644939,1.31329146,3031.3,3031.2,0.0700184]
[1644896645639,1.33156331,3031.3,3031.2,0.0700184]
[1644896645840,1.33156994,3031.3,3031.2,0.0700184]
[1644896646840,1.33668437,3031.4,3031.2,0.0700184]
[1644896647039,1.33156994,3031.3,3031.2,0.0700184]
[1644896647694,1.33156994,3031.3,3031.2,0.8948184]
[1644896648289,0.00511443,3031.4,3031.2,0.8948184]
[1644896648489,0.00511443,3031.4,3031.3,0.0700184]
[1644896648689,0.00511443,3031.4,3031.2,0.0700184]
[1644896648690,1.33618486,3031.4,3031.2,0.0700184]
[1644896648890,1.33107196,3031.3,3031.2,1.5546246]
[1644896649096,1.33107126,3031.3,3031.2,0.7298446]
[1644896649388,1.33107351,3031.3,3031.2,0.3700184]
[1644896649591,1.33107077,3031.7,3031.2,0.3700184]
[1644896649790,1.33106839,3031.6,3031.3,0.07001587]
[1644896649990,1.33106839,3031.6,3031.4,0.07001587]
[1644896650192,1.33106839,3031.6,3031.5,0.07001587]
[1644896650392,1.33106839,3031.6,3031.4,0.07001672]
[1644896650589,1.33618285,3031.6,3031.4,0.07001672]
[1644896650792,0.00511446,3031.6,3031.3,0.9598664]
[1644896651034,1.33108002,3031.5,3031.4,0.89478658]
[1644896651237,1.33108002,3031.5,3031.4,1.71954658]
[1644896651636,1.33108002,3031.5,3031.4,0.89478658]
[1644896651833,0.00511446,3031.6,3031.4,0.89478658]
[1644896652134,1.33108002,3031.5,3031.4,0.82477]
[1644896652333,1.33108002,3031.5,3031.4,0.89478563]
[1644896652935,1.33108002,3031.5,3031.4,1.71955563]
[1644896653333,1.33104958,3031.5,3031.4,1.71955563]
[1644896653535,0.64133407,3031.5,3031.4,1.71955563]
[1644896653736,1.97238764,3031.5,3031.4,1.71955563]
[1644896653936,0.64133407,3031.5,3031.4,2.37936293]
[1644896654339,1.97229709,3031.5,3031.4,2.37936293]
[1644896654536,0.64133407,3031.5,3031.4,2.37936293]
[1644896655085,0.64133407,3031.5,3031.4,1.55459293]
[1644896655285,1.97243961,3031.5,3031.4,1.55459293]
[1644896655488,1.97243763,3031.5,3031.4,1.55459293]
[1644896655685,1.97243694,3031.5,3031.4,1.55459293]
[1644896656084,0.64133407,3031.5,3031.4,1.55459293]
[1644896656287,1.97244298,3031.5,3031.4,0.72982293]
[1644896656986,0.00506343,3031.6,3031.4,0.72982293]
[1644896657188,0.00506343,3031.6,3031.5,0.89475563]
[1644896657387,1.33707191,3031.6,3031.5,0.72982023]
[1644896657689,1.33200788,3031.6,3031.5,1.02982023]
[1644896657889,1.33201374,3031.7,3031.5,0.37001563]
[1644896658088,1.97334781,3031.6,3031.2,0.3]
[1644896658287,0.64133407,3031.6,3031.3,0.37001476]
[1644896658531,0.64133407,3031.6,3031.4,0.07001476]
[1644896658731,1.33211483,3031.5,3031.4,0.07001476]
[1644896658932,0.64133407,3031.6,3031.4,0.07001476]
[1644896659131,1.33211693,3031.5,3031.4,0.07001476]
[1644896659334,1.33211764,3031.5,3031.4,0.07001476]
[1644896659531,1.33211728,3031.5,3031.4,0.07001476]
[1644896659736,1.46620407,3031.6,3031.4,0.07001476]
[1644896659934,1.33211763,3031.5,3031.4,0.07001476]
[1644896660140,1.46620407,3031.6,3031.4,0.07001476]
[1644896660338,1.33204742,3031.5,3031.4,0.07001476]
[1644896660538,1.46620407,3031.6,3031.4,0.07001476]
[1644896660936,0.64133407,3031.6,3031.4,0.72987436]
[1644896661136,0.64133407,3031.6,3031.5,0.07001456]
[1644896661338,1.97350325,3031.6,3031.5,0.07001456]
[1644896661939,1.97350325,3031.6,3031.4,0.07001456]
[1644896662205,1.33217586,3031.5,3031.4,0.07001456]
[1644896662409,1.33225084,3031.5,3031.2,0.07001456]
[1644896662613,1.33225036,3031.4,3031.2,0.07001456]
[1644896662807,0.64133407,3031.6,3031.2,0.07001456]
[1644896663010,0.00608308,3031.7,3031.2,0.07001456]
[1644896663207,1.33223623,3031.6,3031.2,0.07001456]
[1644896663608,1.33223623,3031.6,3031.3,0.82474]
[1644896663808,1.33831931,3031.6,3031.4,0.07001456]
[1644896664007,1.33831931,3031.6,3031.4,0.72980306]
[1644896664408,0.00608308,3031.6,3031.5,0.07001255]
[1644896664612,1.83126834,3031.8,3031.5,0.07001255]
[1644896664810,1.33215132,3031.7,3031.5,0.07001255]
[1644896665109,1.3382344,3031.7,3031.6,0.07001255]
[1644896665309,2.3382344,3031.7,3031.6,0.07001255]
[1644896665709,1.3382344,3031.7,3031.4,0.07001255]
[1644896665955,1.332227,3031.6,3031.5,0.07001255]
[1644896666155,1.332227,3031.6,3031.5,0.72979785]
[1644896666355,1.332227,3031.7,3031.5,1.55453785]
[1644896666555,1.332227,3031.7,3031.6,0.07001255]
[1644896666855,2.332227,3031.7,3031.6,0.07001255]
[1644896667257,1.332227,3031.7,3031.6,0.07001255]
[1644896667756,2.332227,3031.7,3031.6,0.07001255]
[1644896667955,1.332227,3031.7,3031.6,0.07001255]
[1644896668155,2.332227,3031.7,3031.6,0.07001255]
[1644896668654,1.332227,3031.7,3031.6,0.07001255]
[1644896668855,2.332227,3031.7,3031.6,0.07001255]
[1644896669055,2.332227,3031.7,3031.6,0.89473255]
[1644896669254,1.332227,3031.7,3031.6,0.89473255]
[1644896669686,2.332227,3031.7,3031.6,0.89473255]
[1644896669890,1.332227,3031.7,3031.6,0.07001255]
[1644896670088,2.332227,3031.7,3031.6,0.07001255]
[1644896670287,1.332227,3031.7,3031.6,0.07001255]
[1644896670488,2.332227,3031.7,3031.6,0.07001255]
[1644896670891,1.332227,3031.7,3031.6,0.07001255]
[1644896671091,2.332227,3031.7,3031.6,0.07001255]
[1644896671490,1.332227,3031.7,3031.6,0.07001255]
[1644896671692,2.332227,3031.7,3031.6,0.07001255]
[1644896675743,1.332227,3031.7,3031.6,0.07001255]
[1644896676144,2.332227,3031.7,3031.6,0.07001255]
[1644896677596,3.79843107,3031.7,3031.4,0.07001255]
[1644896677787,1.332227,3031.6,3031.5,0.07001255]
[1644896678186,1.332227,3031.6,3031.2,0.07001255]
[1644896678387,1.332227,3031.6,3031.3,0.07001255]
[1644896678587,1.332227,3031.6,3031.4,0.07001255]
[1644896678787,1.332227,3031.6,3031.5,0.07001255]
[1644896678987,1.332227,3031.6,3031.4,0.07001255]
[1644896680588,2.157097,3031.6,3031.4,0.07001255]
[1644896680789,1.33378821,3031.5,3031.4,0.07001255]
[1644896681033,1.33381961,3031.5,3031.4,0.07001255]
[1644896681235,1.33381765,3031.6,3031.4,0.07001255]
[1644896681633,1.33990073,3031.6,3031.4,0.07001255]
[1644896681833,0.00608308,3031.6,3031.1,3.32857141]
[1644896682034,1.33149415,3031.5,3031.3,0.8248]
[1644896682236,0.00608308,3031.6,3031.4,0.07001207]
[1644896682437,1.331688,3031.5,3031.4,0.07001207]
[1644896682636,0.64133407,3031.7,3031.4,1.55464637]
[1644896682841,1.3317278,3031.6,3031.5,0.07001207]
[1644896685892,1.3317278,3031.6,3031.5,0.72984647]
[1644896686295,20.6617278,3031.6,3031.5,0.07001207]
[1644896686495,20.6617278,3031.6,3031.2,0.07001207]
[1644896686796,20.6617278,3031.6,3031.3,0.07002091]
[1644896686797,19.33,3031.4,3031.3,0.07002091]
[1644896687092,19.33,3031.4,3031.3,0.070021]
[1644896687093,2.86414805,3031.4,3031.3,0.070021]
[1644896687295,2.3317278,3031.4,3031.3,0.07002008]
[1644896687494,2.3317278,3031.4,3031.3,0.07001719]
[1644896687696,1.3317278,3031.4,3031.3,0.07001719]
[1644896687897,2.3317278,3031.4,3031.3,0.07001719]
[1644896688098,2.3317278,3031.4,3031.2,0.07001862]
[1644896688294,0.00709334,3031.5,3031.3,0.07001862]
[1644896688539,1.34373185,3031.4,3031.1,2.7]
[1644896688739,1.34373185,3031.4,3031.2,0.07001751]
[1644896688939,1.34373185,3031.3,3031.2,0.07001751]
[1644896689141,1.00101026,3031.5,3031.2,0.07001751]
[1644896689142,1.34372126,3031.4,3031.2,0.07001751]
[1644896689338,1.00101026,3031.5,3031.2,0.07001751]
[1644896689339,1.34385815,3031.3,3031.2,0.07001751]
[1644896689538,1.82593026,3031.5,3031.2,0.07001751]
[1644896689740,1.34385724,3031.4,3031.2,0.07001751]
[1644896690743,1.34289743,3031.4,3031.2,0.07001751]
[1644896692041,1.34289743,3031.4,3031.2,0.07670093]
[1644896692288,1.34289743,3031.4,3031.2,0.00668342]
[1644896692487,2.16786743,3031.4,3031.2,0.00668342]
[1644896692693,0.82497,3031.4,3031.2,0.00668342]
[1644896692888,1.82497,3031.4,3031.2,0.00668342]
[1644896693087,1.00708236,3031.5,3031.2,0.00668342]
[1644896693291,1.0,3031.4,3031.2,0.00668342]
[1644896693488,0.00101026,3031.5,3031.2,0.66656432]
[1644896693690,0.00708236,3031.5,3031.2,0.66656432]
[1644896693890,0.00708236,3031.5,3031.3,0.3]
[1644896694689,0.00101026,3031.5,3031.3,0.3]
[1644896694889,0.00101026,3031.5,3031.2,0.00668342]
[1644896695489,0.00101026,3031.5,3031.2,0.66657282]
[1644896695966,0.00101026,3031.5,3031.3,0.3]
[1644896696165,0.00708236,3031.5,3031.2,0.30668342]
[1644896696363,0.00708236,3031.5,3031.2,0.00668342]
[1644896697165,0.00101026,3031.5,3031.2,0.00668342]
[1644896697368,0.00708236,3031.5,3031.3,0.6598419]
[1644896697565,0.00708236,3031.5,3031.3,0.9598419]
[1644896698167,0.00708236,3031.5,3031.3,0.3]
[1644896698369,0.00101026,3031.5,3031.2,0.66656512]
[1644896698571,0.00101026,3031.5,3031.3,0.3]
[1644896699168,0.00101026,3031.5,3031.2,0.30668342]
[1644896699367,0.82590026,3031.5,3031.2,0.00668342]
[1644896699789,0.83197236,3031.5,3031.2,0.00668342]
[1644896699990,0.00708236,3031.5,3031.2,0.00668342]
[1644896700590,0.00708236,3031.5,3031.2,0.66656692]
[1644896700791,0.00101026,3031.5,3031.3,0.3]
[1644896700992,0.00708236,3031.5,3031.3,0.3]
[1644896701391,0.00708236,3031.5,3031.2,0.30668342]
[1644896701591,0.00708236,3031.5,3031.2,0.00668342]
[1644896701791,0.00101026,3031.5,3031.2,0.00668342]
[1644896701994,0.82590026,3031.5,3031.2,0.00668342]
[1644896702293,0.00708236,3031.5,3031.2,0.00668342]
[1644896702897,0.00708236,3031.5,3031.2,0.66656742]
[1644896703205,0.00708236,3031.5,3031.2,0.83148342]
[1644896703206,0.00101026,3031.5,3031.2,0.83148342]
[1644896703455,0.00708236,3031.5,3031.3,0.3]
[1644896704053,0.00708236,3031.5,3031.3,1.1248]
[1644896704255,0.00101026,3031.5,3031.3,1.1248]
[1644896704655,0.00101026,3031.5,3031.3,1.7846091]
[1644896705156,0.00101026,3031.5,3031.4,0.82477]
[1644896705357,0.00101026,3031.5,3031.3,0.9598091]
[1644896706559,0.00101026,3031.5,3031.3,0.3]
[1644896706760,0.82589026,3031.5,3031.2,0.00668342]
[1644896707059,0.82589026,3031.5,3031.2,0.66658972]
[1644896707289,0.82589026,3031.5,3031.3,0.3]
[1644896707790,0.82589026,3031.5,3031.2,0.00668342]
[1644896708192,0.82589026,3031.5,3031.2,0.66656252]
[1644896708591,0.82589026,3031.5,3031.3,0.3]
[1644896709192,1.72969654,3031.4,3031.3,0.3]
[1644896709592,1.76405994,3031.4,3031.3,0.3]
[1644896709893,1.76405994,3031.4,3031.3,0.30668342]
[1644896710694,3.10807973,3031.4,3031.3,0.37669197]
[1644896716993,1.76405994,3031.4,3031.3,0.37669197]
[1644896717195,3.1082794,3031.4,3031.3,0.37669197]
[1644896717396,3.10879462,3031.4,3031.3,0.37669197]
[1644896717595,1.76405994,3031.4,3031.3,0.37669197]
[1644896717796,3.10870019,3031.4,3031.3,0.37669197]
[1644896717996,1.76405994,3031.4,3031.3,0.37669197]
[1644896718197,3.10880796,3031.4,3031.3,0.37669197]
[1644896718441,3.10879072,3031.4,3031.3,0.37669197]
[1644896718640,3.1087927,3031.4,3031.3,0.37669197]
[1644896718839,1.76405994,3031.4,3031.3,0.37669197]
[1644896719040,3.10878609,3031.4,3031.3,0.37669197]
[1644896719240,1.76405994,3031.4,3031.3,0.37669197]
[1644896719444,3.10875541,3031.4,3031.3,0.37669197]
[1644896719640,3.10872027,3031.4,3031.3,0.37669197]
[1644896719839,1.76405994,3031.4,3031.3,0.07669197]
[1644896720041,3.10879424,3031.4,3031.3,0.07669197]
[1644896720441,1.76405994,3031.4,3031.3,0.07669197]
[1644896720642,3.10895364,3031.4,3031.3,0.07669197]
[1644896720847,1.76405994,3031.4,3031.3,0.07669197]
[1644896721043,3.10898596,3031.4,3031.3,0.07669197]
[1644896721243,3.10896989,3031.4,3031.3,0.07669197]
[1644896721442,1.76405994,3031.4,3031.3,0.07669197]
[1644896721642,3.10897727,3031.4,3031.3,0.07669197]
[1644896721842,3.10898765,3031.4,3031.3,0.07669197]
[1644896722045,3.10903244,3031.4,3031.3,0.07669197]
[1644896722287,1.76405994,3031.4,3031.3,0.07669197]
[1644896722487,3.10903499,3031.4,3031.3,0.07669197]
[1644896722988,1.76405994,3031.4,3031.3,0.07669197]
[1644896723192,3.10901462,3031.4,3031.3,0.07669197]
[1644896723389,1.76405994,3031.4,3031.3,0.07669197]
[1644896723590,3.10904903,3031.4,3031.3,0.07669197]
[1644896723792,1.76405994,3031.4,3031.3,0.07669197]
[1644896724192,3.10905107,3031.4,3031.3,0.07669197]
[1644896724394,2.40539401,3031.4,3031.3,0.07669197]
[1644896724595,3.75044577,3031.4,3031.3,0.07669197]
[1644896724792,2.40539401,3031.4,3031.3,0.07669197]
[1644896725795,3.7508317,3031.4,3031.3,0.37669197]
[1644896726041,2.40539401,3031.4,3031.3,0.37669197]
[1644896726243,3.75076155,3031.4,3031.3,0.37669197]
[1644896726445,2.40539401,3031.4,3031.3,0.37669197]
[1644896726645,3.75087038,3031.4,3031.3,0.37669197]
[1644896726844,3.75085356,3031.4,3031.3,0.37669197]
[1644896727045,2.40539401,3031.4,3031.3,0.37669197]
[1644896727248,3.75075093,3031.4,3031.3,0.37669197]
[1644896727444,2.40539401,3031.4,3031.3,0.37669197]
[1644896727644,5.09612482,3031.4,3031.3,0.07669197]
[1644896727844,3.7507644,3031.4,3031.3,0.07669197]
[1644896728043,2.40539401,3031.4,3031.3,0.07669197]
[1644896728243,3.75070577,3031.4,3031.3,0.07669197]
[1644896728646,2.40539401,3031.4,3031.3,0.07669197]
[1644896728844,3.75078668,3031.4,3031.3,0.07669197]
[1644896729045,2.40539401,3031.4,3031.3,0.07669197]
[1644896729345,2.40539401,3031.4,3031.3,0.37669197]
[1644896729545,3.7507429,3031.4,3031.3,0.37669197]
[1644896729789,3.75069531,3031.4,3031.3,0.37669197]
[1644896729987,2.40539401,3031.4,3031.3,0.37669197]
[1644896730195,3.75077211,3031.4,3031.3,1.20147197]
[1644896730386,3.75077071,3031.4,3031.3,1.20147197]
[1644896730588,2.40539401,3031.4,3031.3,1.20147197]
[1644896730987,3.75076025,3031.4,3031.3,1.20147197]
[1644896731297,3.75070949,3031.4,3031.3,0.37669197]
[1644896731490,2.40539401,3031.4,3031.3,0.37669197]
[1644896731688,3.75061656,3031.4,3031.3,0.37669197]
[1644896732088,2.40539401,3031.4,3031.3,0.37669197]
[1644896732298,3.74673607,3031.4,3031.3,0.37669197]
[1644896732889,3.74673607,3031.4,3031.3,0.07669197]
[1644896733090,4.74673607,3031.4,3031.3,0.07669197]
[1644896733540,4.74673607,3031.4,3031.3,0.0766956]
[1644896734946,4.73814522,3031.4,3031.3,0.0766956]
[1644896735544,3.73814522,3031.4,3031.3,0.0766956]
[1644896737195,4.73814522,3031.4,3031.3,0.0766956]
[1644896741040,3.73814522,3031.4,3031.3,0.0766956]
[1644896742847,4.73814522,3031.4,3031.3,0.0766956]
[1644896743641,3.39680316,3031.4,3031.3,0.00668342]
[1644896743843,3.73827321,3031.4,3031.3,0.00668342]
[1644896744142,3.73827321,3031.4,3031.3,0.07669627]
[1644896744143,4.73827321,3031.4,3031.3,0.07669627]
[1644896747589,24.06827321,3031.4,3031.3,0.07669627]
[1644896747788,5.26875995,3031.4,3031.3,0.07669808]
[1644896747993,3.73827321,3031.4,3031.3,0.07669681]
[1644896748841,24.06827321,3031.4,3031.3,0.00668342]
[1644896749043,25.59875995,3031.4,3031.3,0.07669942]
[1644896749241,2.35,3031.3,3031.1,2.4]
[1644896749442,2.16650005,3031.2,3031.1,2.4]
[1644896749742,1.68987827,3031.2,3031.1,2.4]
[1644896749942,3.89594616,3031.2,3031.1,2.47001602]
[1644896750341,4.07091616,3031.2,3031.1,2.47001602]
[1644896751145,4.89594616,3031.2,3031.1,2.47001602]
[1644896751343,4.37091616,3031.2,3031.1,2.47001602]
[1644896751745,3.37091616,3031.2,3031.1,2.47001602]
[1644896754803,3.39660808,3031.2,3031.1,2.47001602]
[1644896763456,6.69660808,3031.2,3031.1,0.07001602]
[1644896763647,7.33794215,3031.2,3031.1,0.07001602]
[1644896763843,8.98776425,3031.2,3030.9,0.07001602]
[1644896764041,2.16612962,3031.1,3030.9,0.07001602]
[1644896764242,2.20606789,3031.0,3030.7,0.62857141]
[1644896764445,1.34121962,3030.9,3030.7,0.69858726]
[1644896764844,2.16614372,3030.9,3030.7,1.52354726]
[1644896765042,1.34121962,3030.8,3030.7,1.46009929]
[1644896765243,1.34121962,3030.8,3030.7,1.53011419]
[1644896765545,0.8249241,3030.9,3030.7,1.53062913]
[1644896765744,0.8249241,3030.9,3030.8,0.69911251]
[1644896765945,2.16892899,3030.9,3030.8,0.70568039]
[1644896766744,2.16288662,3030.9,3030.8,0.70568039]
[1644896769390,0.8249241,3030.9,3030.8,0.70568039]
[1644896769691,3.89278178,3030.9,3030.8,0.70568039]
[1644896769889,2.58019159,3030.9,3030.8,0.70568039]
[1644896770389,3.91843127,3030.9,3030.8,0.70568039]
[1644896770591,2.58019159,3030.9,3030.8,0.70568039]
[1644896770790,3.91842924,3030.9,3030.8,0.70568039]
[1644896771040,2.58019159,3030.9,3030.8,0.70568039]
[1644896771343,3.91805514,3030.9,3030.8,0.70568039]
[1644896771540,3.91809982,3030.9,3030.8,0.70568039]
[1644896771740,3.91805923,3030.9,3030.8,0.70568039]
[1644896771942,3.91802687,3030.9,3030.8,0.70568039]
[1644896772140,2.58019159,3030.9,3030.8,0.70568039]
[1644896772342,3.91803279,3030.9,3030.8,0.70568039]
[1644896772540,2.58019159,3030.9,3030.8,0.70568039]
[1644896772840,3.92468933,3030.9,3030.8,0.70568039]
[1644896773040,2.58019159,3030.9,3030.8,0.70568039]
[1644896773444,3.92453686,3030.9,3030.8,0.70568039]
[1644896773640,2.58019159,3030.9,3030.8,0.70568039]
[1644896774041,3.92468148,3030.9,3030.8,0.70568039]
[1644896774243,2.58019159,3030.9,3030.8,0.70568039]
[1644896774443,3.92479682,3030.9,3030.8,0.70568039]
[1644896774697,3.92479751,3030.9,3030.8,0.70568039]
[1644896775098,2.58019159,3030.9,3030.8,0.70568039]
[1644896775299,3.92482479,3030.9,3030.8,0.70568039]
[1644896775598,2.58019159,3030.9,3030.8,0.70568039]